bitfinex/quotes_SOLUSD_20251208
["timestamp","ask_amount","ask_price","bid_price","bid_amount"]
[1765153164251,0.7,131.87,131.84,9.32442574]
[1765153164567,26.53927812,131.88,131.84,9.99442574]
[1765153164775,27.23927812,131.88,131.84,9.99442574]
[1765153165111,27.23927812,131.88,131.84,9.32442574]
[1765153165112,26.53927812,131.88,131.84,9.32442574]
[1765153165245,0.5,131.87,131.84,9.99442574]
[1765153166442,0.5,131.87,131.84,9.32442574]
[1765153166649,0.5,131.87,131.85,0.67]
[1765153166843,0.5,131.87,131.84,0.67]
[1765153167071,7.58265089,131.88,131.84,9.99442574]
[1765153167250,7.58265089,131.88,131.84,9.32442574]
[1765153167251,0.7,131.87,131.84,9.32442574]
[1765153167450,0.7,131.87,131.83,9.32442574]
[1765153168473,0.7,131.87,131.84,9.32442574]
[1765153169077,7.583801,131.86,131.84,9.32442574]
[1765153169480,7.583801,131.86,131.82,9.99442575]
[1765153169682,8.283801,131.86,131.82,9.99442575]
[1765153170388,0.5,131.85,131.82,9.99442575]
[1765153171060,8.08438927,131.85,131.82,9.99442575]
[1765153171383,8.78438927,131.85,131.82,9.99442575]
[1765153171883,8.08438927,131.85,131.82,9.99442575]
[1765153173872,0.5,131.85,131.82,17.58050793]
[1765153174068,0.5,131.85,131.84,9.32442574]
[1765153174583,0.5,131.85,131.84,9.99442574]
[1765153175604,8.78438231,131.85,131.82,1e-08]
[1765153176600,8.08438231,131.85,131.82,0.67000001]
[1765153176771,9.32442574,131.83,131.82,1e-08]
[1765153176972,17.70442574,131.83,131.82,1e-08]
[1765153177173,27.21437066,131.83,131.82,1e-08]
[1765153178703,34.79989747,131.83,131.82,1e-08]
[1765153180272,51.10876147,131.83,131.82,1e-08]
[1765153181201,7.58552681,131.83,131.82,1e-08]
[1765153181578,17.60995255,131.83,131.82,1e-08]
[1765153182393,8.28552681,131.83,131.82,1e-08]
[1765153183802,17.72442574,131.84,131.82,1e-08]
[1765153183803,7.58512266,131.84,131.82,1e-08]
[1765153184002,10.02442574,131.86,131.82,0.67000001]
[1765153184181,7.58451623,131.85,131.82,9.99442575]
[1765153184384,7.58451623,131.85,131.82,0.67000001]
[1765153184883,8.28451623,131.85,131.82,1e-08]
[1765153185079,7.58451623,131.85,131.82,9.99442575]
[1765153185802,7.58400103,131.86,131.83,0.67]
[1765153186398,7.58341135,131.87,131.83,9.99442574]
[1765153186798,7.58341135,131.87,131.84,0.67]
[1765153187406,0.7,131.86,131.82,9.99442575]
[1765153187698,0.7,131.86,131.82,0.67000001]
[1765153188079,0.7,131.86,131.82,9.99442575]
[1765153188710,0.7,131.86,131.82,6.69784778]
[1765153189206,0.5,131.85,131.82,6.69784778]
[1765153189503,0.5,131.85,131.83,0.67]
[1765153190107,7.58327538,131.87,131.83,6.69784777]
[1765153190301,7.58327538,131.87,131.84,0.67]
[1765153191005,7.58327538,131.87,131.84,6.69784777]
[1765153191191,27.21134014,131.87,131.83,0.7]
[1765153191510,33.23918791,131.87,131.83,0.7]
[1765153191701,6.69784777,131.86,131.82,1e-08]
[1765153191886,6.69784777,131.86,131.82,0.70000001]
[1765153192488,0.67,131.86,131.82,0.70000001]
[1765153192692,6.69784777,131.86,131.82,0.70000001]
[1765153192912,0.67,131.85,131.82,1e-08]
[1765153193214,7.58552681,131.83,131.82,1e-08]
[1765153193708,14.28337458,131.83,131.82,1e-08]
[1765153194608,23.0933195,131.83,131.82,1e-08]
[1765153195718,0.67,131.82,131.81,1e-08]
[1765153196031,31.40671177,131.82,131.81,1e-08]
[1765153196196,40.21665669,131.82,131.81,1e-08]
[1765153196385,31.40671177,131.82,131.81,1e-08]
[1765153196687,6.02784777,131.82,131.81,1e-08]
[1765153196891,22.01337458,131.83,131.81,1e-08]
[1765153197305,15.98552681,131.83,131.81,1e-08]
[1765153197506,15.98552681,131.83,131.81,0.71000001]
[1765153197711,6.71784777,131.82,131.81,1e-08]
[1765153198692,31.83665669,131.82,131.81,1e-08]
[1765153199597,39.42275895,131.82,131.81,1e-08]
[1765153200310,16.308864,131.79,131.78,1e-08]
[1765153200495,39.54665669,131.79,131.78,1e-08]
[1765153200811,40.23665669,131.79,131.78,1e-08]
[1765153201722,47.82448581,131.79,131.78,1e-08]
[1765153202226,25.11880892,131.76,131.75,1e-08]
[1765153202425,39.54665669,131.76,131.75,1e-08]
[1765153202594,40.23665669,131.76,131.75,1e-08]
[1765153203622,53.85406122,131.76,131.75,1e-08]
[1765153203827,16.308864,131.73,131.69,0.2]
[1765153203995,6.02784777,131.7,131.69,0.2]
[1765153204196,14.42784777,131.7,131.69,0.2]
[1765153204396,8.4,131.7,131.69,0.2]
[1765153205247,6.02784777,131.71,131.69,0.2]
[1765153205594,8.4,131.72,131.69,0.91]
[1765153205794,15.99197577,131.72,131.69,0.91]
[1765153206200,15.99197577,131.72,131.7,0.71]
[1765153206389,8.4,131.72,131.7,0.71]
[1765153206613,6.02784777,131.75,131.7,0.71]
[1765153206813,22.70813694,131.75,131.7,0.71]
[1765153207014,15.99028917,131.75,131.7,6.73784777]
[1765153207320,15.99028917,131.75,131.71,6.02784777]
[1765153207626,15.99028917,131.75,131.71,6.73784777]
[1765153207796,15.99028917,131.75,131.72,0.71]
[1765153209496,22.01813694,131.75,131.72,0.71]
[1765153209702,15.99028917,131.75,131.72,0.71]
[1765153210822,7.58840491,131.78,131.74,6.02784777]
[1765153211012,6.02784777,131.77,131.74,0.71]
[1765153211198,32.58726497,131.78,131.74,0.71]
[1765153211400,26.5594172,131.78,131.74,0.71]
[1765153212214,18.96811197,131.81,131.74,0.71]
[1765153212405,7.58725341,131.8,131.74,8.30067435]
[1765153212600,32.58323471,131.8,131.74,14.32852212]
[1765153212804,26.55538694,131.8,131.75,6.73784777]
[1765153213223,26.55538694,131.8,131.76,0.71]
[1765153213425,7.58725341,131.8,131.76,0.71]
[1765153213730,7.58725341,131.8,131.76,6.73784777]
[1765153214020,8.27725341,131.8,131.74,8.30067435]
[1765153214324,8.27725341,131.8,131.75,6.73784777]
[1765153214508,7.58725341,131.8,131.76,6.02784777]
[1765153214711,7.58725341,131.8,131.76,0.71]
[1765153214920,33.27323471,131.8,131.76,0.71]
[1765153215629,0.69,131.79,131.74,6.73784777]
[1765153216130,7.58840491,131.78,131.74,6.73784777]
[1765153216306,7.58840491,131.78,131.75,0.71]
[1765153216831,7.58840491,131.78,131.75,6.73784777]
[1765153217134,37.91138337,131.89,131.77,6.02784777]
[1765153217338,6.71784777,131.87,131.81,6.02784777]
[1765153217671,8.42,131.86,131.82,6.02784777]
[1765153218014,8.42,131.86,131.83,0.71]
[1765153218322,16.0041821,131.86,131.83,0.71]
[1765153218626,16.0041821,131.86,131.82,6.02784777]
[1765153218627,16.0041821,131.86,131.82,6.73784777]
[1765153219535,16.0041821,131.86,131.82,6.02784777]
[1765153219721,0.69,131.87,131.79,18.96924303]
[1765153219722,7.58326054,131.87,131.84,6.02784777]
[1765153220110,7.58326054,131.87,131.84,6.73784777]
[1765153221825,7.58281282,131.88,131.84,6.02784777]
[1765153222033,7.58281282,131.88,131.83,6.02784777]
[1765153222034,0.71,131.87,131.83,6.02784777]
[1765153222532,0.71,131.87,131.83,6.68784777]
[1765153222830,7.5836638,131.87,131.84,6.02784777]
[1765153223031,7.5836638,131.87,131.84,6.68784777]
[1765153223416,7.58274009,131.88,131.85,6.02784777]
[1765153223614,7.58274009,131.88,131.85,6.68784777]
[1765153224634,8.29222823,131.89,131.86,6.02784777]
[1765153224819,7.58222823,131.89,131.86,6.68784777]
[1765153225409,7.58167375,131.9,131.86,6.68784777]
[1765153225614,7.58167375,131.9,131.87,6.68784777]
[1765153225811,7.58167375,131.9,131.88,6.02784777]
[1765153226424,15.98105898,131.91,131.88,6.68784777]
[1765153226606,0.71,131.92,131.88,6.68784777]
[1765153227314,36.16721101,131.94,131.89,6.68784777]
[1765153227535,0.71,131.93,131.89,6.68784777]
[1765153228036,0.2,131.94,131.92,6.02784777]
[1765153228433,14.51715225,131.94,131.88,6.68784777]
[1765153229032,0.71,131.93,131.85,15.98416855]
[1765153229333,6.02784777,131.92,131.86,6.02784777]
[1765153229743,0.71,131.91,131.86,6.02784777]
[1765153229927,0.71,131.91,131.87,6.02784777]
[1765153230917,7.58150113,131.9,131.87,6.02784777]
[1765153231240,7.58150113,131.9,131.86,6.68784777]
[1765153231538,8.29150113,131.9,131.86,6.68784777]
[1765153231714,8.29150113,131.9,131.86,0.66]
[1765153232116,27.24525397,131.9,131.86,0.66]
[1765153232311,27.24525397,131.9,131.86,6.68784777]
[1765153232511,7.58150113,131.9,131.87,6.02784777]
[1765153232813,8.9,131.93,131.88,6.02784777]
[1765153233011,0.71,131.92,131.88,6.68784777]
[1765153233546,8.29056425,131.92,131.88,6.68784777]
[1765153234042,7.58056425,131.92,131.89,0.66]
[1765153234240,7.77932409,131.94,131.9,6.02784777]
[1765153234544,8.48932409,131.94,131.91,6.02784777]
[1765153235344,0.2,131.94,131.93,6.02784777]
[1765153235843,0.2,131.94,131.93,6.68784777]
[1765153236220,0.2,131.94,131.93,15.49779269]
[1765153236439,0.2,131.94,131.93,6.68784777]
[1765153237427,0.2,131.94,131.92,6.02784777]
[1765153237826,0.2,131.94,131.93,6.02784777]
[1765153239038,0.2,131.94,131.93,6.68784777]
[1765153239342,8.48942198,131.94,131.91,14.42784777]
[1765153239856,8.48942198,131.94,131.89,6.02784777]
[1765153239857,0.71,131.93,131.89,6.02784777]
[1765153240256,0.71,131.93,131.88,6.02784777]
[1765153240857,0.71,131.93,131.88,6.68784777]
[1765153241360,7.58035172,131.92,131.88,6.68784777]
[1765153241853,8.28996835,131.93,131.89,8.24207597]
[1765153242042,7.57996835,131.93,131.9,6.02784777]
[1765153242238,0.2,131.94,131.92,6.02784777]
[1765153242641,0.2,131.94,131.93,6.68784777]
[1765153243331,0.2,131.94,131.93,14.26762492]
[1765153244138,0.2,131.94,131.93,22.66762492]
[1765153245758,0.2,131.94,131.93,31.47756984]
[1765153245968,0.2,131.94,131.93,23.07756984]
[1765153246138,0.2,131.94,131.93,31.47756984]
[1765153246535,0.2,132.01,131.96,16.308864]
[1765153246755,0.2,132.01,131.98,6.02784777]
[1765153247348,0.2,132.01,131.98,6.68784777]
[1765153247842,0.2,132.01,131.99,6.02784777]
[1765153248165,0.2,132.01,131.99,6.68784777]
[1765153248662,0.2,132.01,132.0,6.02784777]
[1765153249775,0.2,132.01,132.0,13.60360534]
[1765153249949,0.2,132.01,132.0,6.02784777]
[1765153250141,0.2,132.01,131.99,6.02784777]
[1765153250755,0.2,132.01,132.0,9.30397246]
[1765153253962,0.2,132.01,132.0,16.87973003]
[1765153254158,0.2,132.01,132.0,17.53973003]
[1765153260287,0.2,132.01,132.0,26.34967495]
[1765153260569,0.2,132.08,132.03,8.80994492]
[1765153260749,8.49121595,132.08,132.06,9.30397246]
[1765153261183,8.49121595,132.08,132.04,9.30397246]
[1765153261184,0.72,132.07,132.04,9.30397246]
[1765153261360,10.02397246,132.07,132.01,9.30397246]
[1765153261680,9.30397246,132.06,132.0,9.30397246]
[1765153261844,10.02397246,132.06,132.0,9.30397246]
[1765153262043,0.72,132.05,132.0,9.30397246]
[1765153262244,7.57346258,132.04,132.0,9.30397246]
[1765153262708,0.72,132.03,131.98,9.30397246]
[1765153262859,0.72,132.03,131.97,34.091043]
[1765153263373,10.02397246,132.03,131.97,25.28109808]
[1765153263582,0.72,132.02,131.97,7.57712562]
[1765153263885,9.30397246,132.0,131.94,17.70397246]
[1765153264188,0.72,131.99,131.94,17.70397246]
[1765153264478,7.57690559,131.98,131.94,25.2829783]
[1765153264776,7.57690559,131.98,131.94,17.70397246]
[1765153264981,0.72,131.97,131.91,17.70397246]
[1765153265164,10.02397246,131.97,131.91,25.28489828]
[1765153265487,0.72,131.97,131.91,25.28489828]
[1765153265784,0.72,131.96,131.92,9.30397246]
[1765153266562,0.72,131.98,131.93,9.30397246]
[1765153266883,0.72,131.97,131.93,9.30397246]
[1765153268057,17.60160181,131.97,131.91,9.30397246]
[1765153268254,10.02397246,131.96,131.9,25.61283646]
[1765153268673,0.72,131.95,131.9,33.19425263]
[1765153268880,0.72,131.95,131.9,16.88538863]
[1765153269286,0.72,131.95,131.91,9.91397246]
[1765153269469,0.72,131.95,131.92,9.30397246]
[1765153269779,0.72,131.95,131.91,16.88471938]
[1765153269984,26.52720932,131.94,131.89,24.708864]
[1765153270170,35.83118178,131.94,131.89,8.4]
[1765153270371,0.72,131.93,131.89,8.4]
[1765153270687,0.72,131.94,131.9,9.91397246]
[1765153270978,0.72,131.94,131.9,9.30397246]
[1765153272060,8.29922777,131.94,131.9,16.88542677]
[1765153272578,8.29922777,131.94,131.91,9.30397246]
[1765153272579,0.72,131.94,131.91,9.30397246]
[1765153272777,8.29927379,131.94,131.9,17.49542677]
[1765153272986,8.29927379,131.94,131.9,9.30397246]
[1765153273191,0.72,131.93,131.9,16.88536289]
[1765153273575,0.72,131.96,131.92,9.30397246]
[1765153273775,0.72,131.95,131.91,9.30397246]
[1765153274079,8.29865349,131.95,131.91,16.88482722]
[1765153274578,0.72,131.95,131.91,16.88482722]
[1765153275384,0.72,131.94,131.91,16.88482722]
[1765153277293,0.72,131.94,131.91,7.58085476]
[1765153277709,0.72,131.94,131.91,79.08482722]
[1765153278889,0.72,131.94,131.91,69.78085476]
[1765153279097,0.72,131.94,131.91,79.08482722]
[1765153279594,7.57871667,131.95,131.91,79.69482722]
[1765153279796,0.72,131.94,131.91,79.69482722]
[1765153279992,26.52117905,131.97,131.92,9.30397246]
[1765153280201,0.72,131.95,131.92,9.30397246]
[1765153280379,26.52117905,131.97,131.92,9.30397246]
[1765153280380,7.57747973,131.97,131.92,9.30397246]
[1765153280581,7.57747973,131.97,131.93,9.30397246]
[1765153280894,0.72,131.97,131.93,9.91397246]
[1765153281271,0.72,131.97,131.94,9.30397246]
[1765153281886,8.27708923,131.98,131.94,9.91397246]
[1765153282088,8.27708923,131.98,131.94,17.49296986]
[1765153282401,0.7,131.97,131.94,17.49296986]
[1765153282707,7.57518369,132.01,131.95,18.11391738]
[1765153282907,0.7,132.0,131.96,9.30397246]
[1765153283100,0.7,132.0,131.95,9.30397246]
[1765153283782,0.7,132.0,131.96,18.11391738]
[1765153284109,0.7,132.0,131.97,9.30397246]
[1765153284998,8.27587818,132.0,131.95,25.28255856]
[1765153285223,0.7,131.99,131.95,25.28255856]
[1765153285997,8.27642519,131.99,131.95,25.28255856]
[1765153286208,0.7,131.99,131.96,9.30397246]
[1765153286409,8.27589683,132.0,131.97,9.30397246]
[1765153286717,0.7,131.99,131.97,9.30397246]
[1765153287003,0.7,131.99,131.96,9.30397246]
[1765153287382,7.57537767,132.01,131.97,9.30397246]
[1765153287611,8.27537767,132.01,131.98,9.30397246]
[1765153287902,0.7,132.0,131.97,9.30397246]
[1765153288808,0.7,132.0,131.97,16.88132817]
[1765153290407,8.27479741,132.02,131.99,9.30397246]
[1765153290904,0.7,132.01,131.99,9.30397246]
[1765153292010,7.57479741,132.02,131.99,16.88026681]
[1765153292420,8.27346258,132.04,132.01,9.30397246]
[1765153292592,0.7,132.04,132.01,9.30397246]
[1765153293601,7.57311289,132.05,132.02,9.91397246]
[1765153293810,7.57311289,132.05,132.02,9.30397246]
[1765153294008,8.27311289,132.05,132.02,9.30397246]
[1765153294806,8.27311289,132.05,132.02,3.50515787]
[1765153297112,0.7,132.05,132.02,11.07955745]
[1765153297317,8.27218774,132.07,132.04,3.50515787]
[1765153297626,0.2,132.08,132.06,3.50515787]
[1765153297792,0.2,132.08,132.07,3.50515787]
[1765153299092,0.2,132.08,132.07,28.89684504]
[1765153299292,0.2,132.08,132.07,28.28684504]
[1765153299595,0.2,132.08,132.07,28.89684504]
[1765153303816,0.2,132.08,132.07,28.87684504]
[1765153303996,0.2,132.08,132.07,8.38]
[1765153304408,0.2,132.08,132.07,15.95174225]
[1765153304810,0.2,132.08,132.07,19.45690012]
[1765153305600,0.2,132.08,131.99,37.88119421]
[1765153305601,11.97641641,132.08,131.99,37.88119421]
[1765153305825,11.07804692,132.05,131.99,30.82540883]
[1765153306030,11.07804692,132.05,131.99,47.13427283]
[1765153306338,0.7,132.04,132.0,8.80994492]
[1765153306703,0.7,132.04,132.0,16.99557289]
[1765153306916,0.7,132.04,132.0,16.38557289]
[1765153307216,0.7,132.04,131.99,7.57622183]
[1765153307217,11.77915764,132.04,131.99,7.57622183]
[1765153307751,0.7,132.03,131.99,7.57622183]
[1765153309815,0.7,132.03,131.99,8.18622183]
[1765153310220,18.93309633,132.05,132.0,9.41994492]
[1765153310221,11.77807262,132.05,132.0,9.41994492]
[1765153310408,0.7,132.05,132.01,8.38]
[1765153310611,0.7,132.05,132.01,8.99]
[1765153310812,0.7,132.05,132.02,7.5746099]
[1765153311833,0.68,132.07,132.03,0.61]
[1765153312017,0.68,132.07,132.02,9.81848876]
[1765153312214,0.2,132.08,132.03,11.66382378]
[1765153312416,0.2,132.08,132.04,8.38]
[1765153312735,0.88,132.08,132.05,7.57288905]
[1765153314926,0.2,132.08,132.06,8.80994492]
[1765153315111,0.2,132.08,132.06,9.41994492]
[1765153315433,0.2,132.08,132.06,8.80994492]
[1765153316729,0.2,132.08,132.07,8.99]
[1765153316930,0.9,132.08,132.04,17.18994492]
[1765153317113,8.47121521,132.08,132.04,15.95328208]
[1765153317308,0.7,132.07,132.04,15.95328208]
[1765153318311,8.27177078,132.07,132.04,8.38]
[1765153318711,0.7,132.06,132.04,8.38]
[1765153320125,8.47134168,132.08,132.04,15.95340591]
[1765153320426,0.9,132.08,132.04,16.56340591]
[1765153320818,0.7,132.07,132.04,15.95340591]
[1765153321049,8.47131861,132.08,132.04,15.95340591]
[1765153321448,0.9,132.08,132.04,15.95340591]
[1765153321648,0.7,132.07,132.04,8.38]
[1765153321833,0.7,132.07,132.04,15.95329618]
[1765153322654,8.27180142,132.07,132.03,7.57382932]
[1765153322946,0.7,132.06,132.03,15.953825]
[1765153323823,8.47129111,132.08,132.03,16.563825]
[1765153324029,0.7,132.07,132.03,16.563825]
[1765153327051,6.00885088,132.04,131.98,7.57677904]
[1765153327355,6.00885088,132.02,131.98,7.57677904]
[1765153327857,0.7,132.01,131.98,7.57677904]
[1765153328032,8.27528243,132.01,131.97,16.38721495]
[1765153328228,0.7,132.01,131.97,16.99721495]
[1765153328537,6.70885088,132.07,132.01,8.80994492]
[1765153328749,6.70885088,132.07,132.01,17.18994492]
[1765153328750,0.7,132.06,132.01,17.18994492]
[1765153328969,0.7,132.06,132.01,23.1987958]
[1765153329174,8.47136843,132.08,132.03,14.8187958]
[1765153329465,8.47136843,132.08,132.04,8.99]
[1765153329626,0.7,132.07,132.04,8.38]
[1765153330054,0.7,132.07,132.04,15.95339893]
[1765153332855,0.7,132.07,132.04,8.38]
[1765153333051,8.27177758,132.07,132.04,8.38]
[1765153333639,8.27177758,132.07,132.04,15.95345217]
[1765153333854,0.2,132.08,132.04,22.57230305]
[1765153334062,0.2,132.08,132.06,6.00885088]
[1765153334733,0.2,132.08,132.07,23.8087958]
[1765153335958,0.2,132.08,132.07,31.38053805]
[1765153337435,0.2,132.08,132.07,7.57174225]
[1765153337635,0.2,132.08,132.06,32.26101319]
[1765153338037,0.2,132.08,132.06,38.26986407]
[1765153338266,0.2,132.08,132.06,38.87986407]
[1765153338468,0.9,132.08,132.06,8.38]
[1765153338964,0.7,132.07,132.04,8.80994492]
[1765153339170,2.94251799,132.07,132.02,8.38]
[1765153339341,2.94251799,132.07,132.02,24.688864]
[1765153339659,0.7,132.06,132.02,15.95440622]
[1765153341062,0.7,132.06,132.02,16.56440622]
[1765153341259,0.7,132.06,132.02,15.95440622]
[1765153341761,0.7,132.06,132.02,78.15440622]
[1765153342859,0.7,132.06,132.02,78.76440622]
[1765153343443,0.7,132.06,132.02,78.15440622]
[1765153344344,0.2,132.08,132.03,15.42898439]
[1765153344542,0.2,132.08,132.05,8.80994492]
[1765153345282,0.86,132.08,132.05,8.80994492]
[1765153345637,0.2,132.08,132.06,16.56231561]
[1765153345842,0.2,132.08,132.06,15.95231561]
[1765153349866,0.86,132.08,132.06,15.95231561]
[1765153350658,0.2,132.08,132.06,15.95231561]
[1765153352049,0.2,132.08,132.06,78.15231561]
[1765153353775,6.00903947,132.07,132.06,62.2]
[1765153354173,6.66903947,132.07,132.06,62.2]
[1765153354351,6.66903947,132.07,132.02,8.38]
[1765153354554,6.00903947,132.05,132.02,8.38]
[1765153354861,6.00903947,132.04,132.01,16.308864]
[1765153355263,6.00903947,132.04,132.0,8.38]
[1765153355264,0.66,132.03,132.0,15.95561323]
[1765153355471,0.66,132.03,132.01,7.57500691]
[1765153355661,6.66903947,132.04,132.01,7.57500691]
[1765153355855,13.58148351,132.06,132.01,16.99495183]
[1765153356078,0.66,132.04,132.02,8.38]
[1765153357476,0.66,132.04,132.02,15.95433252]
[1765153358275,0.66,132.06,132.02,15.95433252]
[1765153358474,0.66,132.06,132.02,16.56433252]
[1765153359577,0.66,132.06,132.02,35.50085728]
[1765153360982,0.66,132.06,132.02,34.89085728]
[1765153363061,10.47586396,132.06,132.02,15.95433252]
[1765153363548,0.66,132.05,132.02,15.95433252]
[1765153363878,0.66,132.05,132.02,78.15433252]
[1765153365182,10.47641919,132.05,132.02,70.58]
[1765153365696,2.90350467,132.04,132.02,70.58]
[1765153365900,2.90350467,132.04,132.01,7.5751823]
[1765153366061,0.66,132.03,132.01,7.5751823]
[1765153366253,7.57291452,132.05,132.01,8.1851823]
[1765153366254,0.66,132.05,132.01,8.1851823]
[1765153366862,0.66,132.05,132.01,7.5751823]
[1765153367572,0.66,132.05,132.01,8.1851823]
[1765153367768,0.66,132.07,132.03,8.80994492]
[1765153367975,0.2,132.08,132.04,8.38]
[1765153368275,0.2,132.08,132.05,11.05344959]
[1765153368462,0.2,132.08,132.06,8.38]
[1765153368663,0.2,132.08,132.06,8.99]
[1765153369163,0.2,132.08,132.07,8.80994492]
[1765153369364,0.2,132.08,132.07,9.41994492]
[1765153369586,0.2,132.08,132.07,8.80994492]
[1765153369963,0.2,132.08,132.07,16.38168717]
[1765153371480,0.2,132.08,132.07,7.57174225]
[1765153371685,0.9,132.08,132.06,15.95209888]
[1765153371998,0.2,132.08,132.06,15.95209888]
[1765153372197,0.2,132.08,132.07,36.80307576]
[1765153374177,0.2,132.08,132.07,99.00307576]
[1765153375312,0.7,132.14,132.1,8.80994492]
[1765153375596,0.7,132.14,132.11,8.38]
[1765153376856,0.2,132.15,132.11,16.55901481]
[1765153377069,0.2,132.15,132.12,9.41994492]
[1765153377271,0.2,132.15,132.13,8.38]
[1765153377462,0.9,132.15,132.13,8.38]
[1765153378794,0.7,132.14,132.11,23.87787881]
[1765153378981,8.2677553,132.14,132.11,16.308864]
[1765153379368,0.7,132.13,132.11,16.308864]
[1765153379966,0.2,132.15,132.11,24.48815845]
[1765153380295,0.7,132.14,132.12,17.18994492]
[1765153380985,0.2,132.15,132.13,7.56830394]
[1765153381166,0.9,132.15,132.13,7.56830394]
[1765153381561,0.72,132.14,132.12,24.75860134]
[1765153381785,0.2,132.15,132.13,62.2]
[1765153382091,0.92,132.15,132.13,62.2]
[1765153383092,0.92,132.15,132.13,69.76819743]
[1765153384469,0.72,132.14,132.13,69.76819743]
[1765153384980,0.92,132.15,132.13,69.76819743]
[1765153385967,0.2,132.15,132.13,69.76819743]
[1765153386382,0.2,132.15,132.14,21.30246951]
[1765153386577,0.2,132.15,132.14,17.18994492]
[1765153386979,0.92,132.15,132.13,7.56819743]
[1765153387191,0.92,132.15,132.13,7.56821467]
[1765153387395,0.72,132.14,132.13,7.56821467]
[1765153388266,0.72,132.14,132.11,78.508864]
[1765153388267,4.22252459,132.14,132.11,62.2]
[1765153388471,11.79031793,132.14,132.11,62.2]
[1765153388682,0.72,132.13,132.11,62.2]
[1765153388892,0.72,132.13,132.12,7.56887677]
[1765153389391,0.92,132.15,132.13,7.56804474]
[1765153390092,0.92,132.15,132.14,17.79994492]
[1765153390093,0.2,132.15,132.14,17.79994492]
[1765153390311,0.2,132.15,132.14,28.8702007]
[1765153390676,0.2,132.16,132.14,28.8702007]
[1765153390885,0.2,132.16,132.15,4.11252459]
[1765153391200,0.2,132.16,132.15,12.92246951]
[1765153392390,0.2,132.16,132.15,20.48962804]
[1765153392770,1e-08,132.16,132.15,20.48962804]
[1765153393168,0.2,132.19,132.18,25.11880892]
[1765153393372,0.2,132.19,132.18,37.61133351]
[1765153394282,0.2,132.19,132.18,45.17677457]
[1765153394889,0.2,132.19,132.18,41.06424998]
[1765153395580,0.2,132.19,132.18,44.56677457]
[1765153396500,0.2,132.19,132.18,45.17677457]
[1765153397176,0.2,132.2,132.19,8.80994492]
[1765153397400,0.2,132.2,132.19,12.92246951]
[1765153398478,0.2,132.2,132.19,20.48733825]
[1765153400802,0.2,132.22,132.21,25.11880892]
[1765153400985,0.2,132.22,132.21,37.00133351]
[1765153401304,0.2,132.22,132.21,37.61133351]
[1765153401509,1e-08,132.22,132.21,37.61133351]
[1765153403120,1e-08,132.22,132.21,45.17505788]
[1765153403318,1e-08,132.22,132.21,39.8222649]
[1765153403499,1e-08,132.22,132.21,48.1822649]
[1765153404405,1e-08,132.22,132.21,19.40087631]
[1765153404608,1e-08,132.22,132.21,16.37366929]
[1765153404912,1e-08,132.22,132.21,32.68253329]
[1765153405206,1e-08,132.22,132.21,36.79505788]
[1765153405393,1e-08,132.22,132.21,20.48619388]
[1765153406132,1e-08,132.22,132.21,28.23619388]
[1765153406609,1e-08,132.22,132.21,28.84619388]
[1765153408507,0.66,132.26,132.25,25.11880892]
[1765153408717,0.66,132.26,132.25,95.69880891]
[1765153409727,0.66,132.26,132.25,103.26024558]
[1765153410188,0.1,132.27,132.26,8.80994492]
[1765153410604,0.76,132.27,132.26,8.80994492]
[1765153411002,0.1,132.27,132.26,8.80994492]
[1765153411195,0.1,132.27,132.26,83.4824695]
[1765153411196,1e-08,132.27,132.26,83.4824695]
[1765153411398,1e-08,132.28,132.27,25.72880892]
[1765153411587,1e-08,132.28,132.27,36.18162684]
[1765153412495,0.66000001,132.28,132.27,41.03910225]
[1765153413087,1e-08,132.28,132.27,41.03910225]
[1765153413449,1e-08,132.28,132.27,45.15162684]
[1765153414130,0.46000001,132.31,132.3,8.80994492]
[1765153414429,0.46000001,132.31,132.3,17.16994492]